fUST/lending_fUST_20241028
["ID","MTS","AMOUNT","RATE_DAILY","PERIOD"]
[340904505,1730052647317,-552.887305,0.00027394,7]
[340904506,1730052647327,-830.248591,0.00027394,7]
[340904507,1730052647337,-552.887305,0.00027394,7]
[340904508,1730052647347,-830.248591,0.00027394,7]
[340904509,1730052647356,-552.887305,0.00027394,7]
[340904510,1730052647366,-830.248591,0.00027394,7]
[340904511,1730052647375,-552.887305,0.00027394,7]
[340904512,1730052647384,-552.887305,0.00027394,7]
[340904513,1730052647394,-552.887305,0.00027394,7]
[340904514,1730052647403,-552.887305,0.00027394,7]
[340904515,1730052647413,-552.887305,0.00027394,7]
[340904516,1730052647423,-552.887305,0.00027394,7]
[340904517,1730052647437,-552.887305,0.00027394,7]
[340904518,1730052647447,-725.174488,0.00027394,7]
[340904519,1730052647457,-725.174488,0.00027394,7]
[340904520,1730052647467,-725.174488,0.00027394,7]
[340904521,1730052647477,-725.174488,0.00027394,7]
[340904522,1730052647487,-725.174488,0.00027394,7]
[340904523,1730052647497,-364.282999,0.00027394,7]
[340904524,1730052647507,-364.282999,0.00027394,7]
[340904525,1730052647517,-364.282999,0.00027394,7]
[340904526,1730052647528,-725.174488,0.00027394,7]
[340904527,1730052647538,-725.174488,0.00027394,7]
[340904528,1730052647549,-725.174488,0.00027394,7]
[340904529,1730052647560,-364.282999,0.00027394,7]
[340904530,1730052647570,-364.282999,0.00027394,7]
[340904531,1730052647579,-725.174488,0.00027394,7]
[340904532,1730052647589,-725.174488,0.00027394,7]
[340904533,1730052647600,-364.282999,0.00027394,7]
[340904534,1730052647611,-364.282999,0.00027394,7]
[340904535,1730052647622,-364.282999,0.00027394,7]
[340904536,1730052647634,-364.282999,0.00027394,7]
[340904537,1730052647643,-364.282999,0.00027394,7]
[340904538,1730052647653,-197.071348,0.00027394,7]
[340904539,1730052647664,-197.071348,0.00027394,7]
[340904540,1730052647673,-197.071348,0.00027394,7]
[340904541,1730052647683,-197.071348,0.00027394,7]
[340904542,1730052647693,-197.071348,0.00027394,7]
[340904543,1730052647702,-197.071348,0.00027394,7]
[340904544,1730052647711,-197.071348,0.00027394,7]
[340904545,1730052647720,-197.071348,0.00027394,7]
[340904546,1730052647730,-197.071348,0.00027394,7]
[340904547,1730052647739,-197.071348,0.00027394,7]
[340904548,1730052647749,-2087.420149,0.00027394,7]
[340904549,1730052647758,-2087.420149,0.00027394,7]
[340904550,1730052647768,-798.34164979,0.00027394,7]
[340904551,1730052647785,-1289.07849921,0.00027394,7]
[340904552,1730052647795,-2087.420149,0.00027394,7]
[340904553,1730052647805,-2087.420149,0.00027394,7]
[340904554,1730052647814,-2087.420149,0.00027394,7]
[340904555,1730052647823,-2087.420149,0.00027394,7]
[340904556,1730052647832,-2087.420149,0.00027394,7]
[340904557,1730052647843,-2087.420149,0.00027394,7]
[340904558,1730052647853,-2087.420149,0.00027394,7]
[340904559,1730052647862,-151.0,0.00027394,7]
[340904560,1730052647871,-151.0,0.00027394,7]
[340904561,1730052647884,-151.0,0.00027394,7]
[340904562,1730052647894,-260.77272,0.00027394,7]
[340904563,1730052647903,-653.819004,0.00027394,7]
[340904564,1730052647913,-653.819004,0.00027394,7]
[340904565,1730052647934,-653.819004,0.00027394,7]
[340904566,1730052647951,-653.819004,0.00027394,7]
[340904567,1730052647965,-653.819004,0.00027394,7]
[340904568,1730052647978,-653.819004,0.00027394,7]
[340904569,1730052647992,-653.819004,0.00027394,7]
[340904570,1730052648003,-653.819004,0.00027394,7]
[340904571,1730052648014,-653.819004,0.00027394,7]
[340904572,1730052648028,-653.819004,0.00027394,7]
[340904573,1730052648040,-230.502505,0.00027394,7]
[340904574,1730052648052,-230.502505,0.00027394,7]
[340904575,1730052648065,-230.502505,0.00027394,7]
[340904576,1730052648079,-230.502505,0.00027394,7]
[340904577,1730052648093,-230.502505,0.00027394,7]
[340904578,1730052648107,-230.502505,0.00027394,7]
[340904579,1730052648119,-230.502505,0.00027394,7]
[340904580,1730052648132,-230.502505,0.00027394,7]
[340904581,1730052648145,-230.502505,0.00027394,7]
[340904582,1730052648160,-230.502505,0.00027394,7]
[340904583,1730052648172,-151.0,0.00027394,7]
[340904584,1730052648184,-151.0,0.00027394,7]
[340904585,1730052648195,-151.0,0.00027394,7]
[340904586,1730052648210,-151.0,0.00027394,7]
[340904587,1730052648224,-151.0,0.00027394,7]
[340904588,1730052648238,-151.0,0.00027394,7]
[340904589,1730052648250,-151.0,0.00027394,7]
[340904590,1730052648262,-151.0,0.00027394,7]
[340904591,1730052648274,-151.0,0.00027394,7]
[340904592,1730052648285,-232.305312,0.00027394,7]
[340904593,1730052648295,-461.591865,0.00027394,7]
[340904594,1730052648306,-461.591865,0.00027394,7]
[340904595,1730052648318,-461.591865,0.00027394,7]
[340904596,1730052648328,-461.591865,0.00027394,7]
[340904597,1730052648341,-461.591865,0.00027394,7]
[340904598,1730052648354,-461.591865,0.00027394,7]
[340904599,1730052648367,-461.591865,0.00027394,7]
[340904600,1730052648380,-461.591865,0.00027394,7]
[340904601,1730052648393,-461.591865,0.00027394,7]
[340904602,1730052648406,-461.591865,0.00027394,7]
[340904603,1730052648421,-150.01,0.00027395,2]
[340904604,1730052648436,-3169.39390333,0.00027395,2]
[340904605,1730052648450,-232.087,0.00027396,16]
[340904606,1730052648461,-203.87586964,0.00027396,16]
[340904607,1730052648471,-151.0,0.00027396,7]
[340904608,1730052648482,-151.0,0.00027396,7]
[340904609,1730052648492,-151.0,0.00027396,7]
[340904610,1730052648502,-151.0,0.00027396,7]
[340904611,1730052648514,-187.145651,0.00027396,7]
[340904612,1730052648527,-187.145651,0.00027396,7]
[340904613,1730052648541,-151.0,0.00027396,7]
[340904614,1730052648555,-461.591865,0.00027396,7]
[340904615,1730052648569,-461.591865,0.00027396,7]
[340904616,1730052648581,-151.0,0.00027397,7]
[340904617,1730052648600,-151.0,0.00027397,7]
[340904618,1730052648611,-151.0,0.00027397,7]
[340904619,1730052648623,-151.0,0.00027397,7]
[340904620,1730052648638,-151.0,0.00027397,7]
[340904621,1730052648651,-151.0,0.00027397,7]
[340904622,1730052648661,-254.212188,0.00027397,7]
[340904623,1730052648673,-151.0,0.00027397,7]
[340904624,1730052648685,-151.0,0.00027397,7]
[340904625,1730052648697,-151.0,0.00027397,7]
[340904626,1730052648708,-151.0,0.00027397,7]
[340904627,1730052648730,-151.0,0.00027397,7]
[340904628,1730052648745,-151.0,0.00027397,7]
[340904629,1730052648770,-151.0,0.00027397,7]
[340904630,1730052648783,-229.393939,0.00027397,7]
[340904631,1730052648796,-554.87400879,0.00027397,30]
[340904632,1730052648811,-258.394235,0.00027397,7]
[340904633,1730052648825,-258.394235,0.00027397,7]
[340904634,1730052648840,-258.394235,0.00027397,7]
[340904635,1730052648854,-500.0,0.00027397,30]
[340904636,1730052648870,-611.22,0.00027397,30]
[340904637,1730052648884,-500.0,0.00027397,30]
[340904638,1730052648897,-623.77,0.00027397,30]
[340904639,1730052648909,-500.0,0.00027397,30]
[340904640,1730052648923,-500.0,0.00027397,30]
[340904641,1730052648936,-586.05750939,0.00027397,30]
[340904642,1730052648952,-670.37,0.00027397,30]
[340904643,1730052648965,-327.11635336,0.00027397,30]
[340904644,1730052648981,-500.0,0.00027397,30]
[340904645,1730052648996,-500.0,0.00027397,30]
[340904646,1730052649008,-559.80697533,0.00027397,30]
[340904647,1730052649020,-500.0,0.00027397,30]
[340904648,1730052649032,-623.95,0.00027397,30]
[340904649,1730052649044,-500.0,0.00027397,30]
[340904650,1730052649056,-500.0,0.00027397,30]
[340904651,1730052649068,-500.0,0.00027397,30]
[340904652,1730052649079,-500.0,0.00027397,30]
[340904653,1730052649092,-544.77985384,0.00027397,30]
[340904654,1730052649110,-151.0,0.00027397,7]
[340904655,1730052649123,-500.0,0.00027397,30]
[340904656,1730052649137,-605.48268628,0.00027397,30]
[340904657,1730052649148,-500.0,0.00027397,30]
[340904658,1730052649160,-306.55509186,0.00027397,30]
[340904659,1730052649171,-500.0,0.00027397,30]
[340904660,1730052649183,-500.0,0.00027397,30]
[340904661,1730052649196,-151.0,0.00027397,7]
[340904662,1730052649208,-500.0,0.00027397,30]
[340904663,1730052649219,-500.0,0.00027397,30]
[340904664,1730052649231,-648.77,0.00027397,30]
[340904665,1730052649244,-500.0,0.00027397,30]
[340904666,1730052649256,-151.0,0.00027397,7]
[340904667,1730052649267,-151.0,0.00027397,7]
[340904668,1730052649279,-151.0,0.00027397,7]
[340904669,1730052649290,-500.0,0.00027397,30]
[340904670,1730052649302,-151.0,0.00027397,7]
[340904671,1730052649314,-151.0,0.00027397,7]
[340904672,1730052649325,-151.0,0.00027397,7]
[340904673,1730052649337,-151.0,0.00027397,7]
[340904674,1730052649350,-151.0,0.00027397,7]
[340904675,1730052649361,-500.0,0.00027397,30]
[340904676,1730052649373,-151.0,0.00027397,7]
[340904677,1730052649384,-151.0,0.00027397,7]
[340904678,1730052649396,-151.0,0.00027397,7]
[340904679,1730052649408,-151.0,0.00027397,7]
[340904680,1730052649420,-151.0,0.00027397,7]
[340904681,1730052649431,-151.0,0.00027397,7]
[340904682,1730052649442,-272.485169,0.00027397,7]
[340904683,1730052649455,-500.0,0.00027397,30]
[340904684,1730052649467,-500.0,0.00027397,30]
[340904685,1730052649478,-500.0,0.00027397,30]
[340904686,1730052649490,-500.0,0.00027397,30]
[340904687,1730052649502,-151.0,0.00027397,7]
[340904688,1730052649514,-151.0,0.00027397,7]
[340904689,1730052649525,-151.0,0.00027397,7]
[340904690,1730052649536,-151.0,0.00027397,7]
[340904691,1730052649548,-151.0,0.00027397,7]
[340904692,1730052649559,-500.0,0.00027397,30]
[340904693,1730052649571,-151.0,0.00027397,7]
[340904694,1730052649581,-151.0,0.00027397,7]
[340904695,1730052649592,-578.93264513,0.00027397,2]
[340904696,1730052649603,-151.0,0.00027397,7]
[340904697,1730052649614,-705.37,0.00027397,30]
[340904698,1730052649626,-244.922673,0.00027397,7]
[340904699,1730052649637,-244.922673,0.00027397,7]
[340904700,1730052649647,-244.922673,0.00027397,7]
[340904701,1730052649657,-244.922673,0.00027397,7]
[340904702,1730052649669,-500.0,0.00027397,30]
[340904703,1730052649680,-244.922673,0.00027397,7]
[340904704,1730052649692,-244.922673,0.00027397,7]
[340904705,1730052649703,-244.922673,0.00027397,7]
[340904706,1730052649715,-244.922673,0.00027397,7]
[340904707,1730052649727,-244.922673,0.00027397,7]
[340904708,1730052649739,-244.922673,0.00027397,7]
[340904709,1730052649751,-244.922673,0.00027397,7]
[340904710,1730052649763,-244.922673,0.00027397,7]
[340904711,1730052649774,-244.922673,0.00027397,7]
[340904712,1730052649786,-244.922675,0.00027397,7]
[340904713,1730052649799,-151.0,0.00027397,7]
[340904714,1730052649811,-151.0,0.00027397,7]
[340904715,1730052649823,-210.079648,0.00027397,7]
[340904716,1730052649835,-500.0,0.00027397,30]
[340904717,1730052649846,-478.43809682,0.00027397,30]
[340904718,1730052649858,-500.0,0.00027397,30]
[340904719,1730052649869,-500.0,0.00027397,30]
[340904720,1730052649881,-500.0,0.00027397,30]
[340904721,1730052649895,-500.0,0.00027397,30]
[340904722,1730052649907,-1689.96,0.00027397,30]
[340904723,1730052649918,-500.0,0.00027397,30]
[340904724,1730052649929,-500.0,0.00027397,30]
[340904725,1730052649940,-500.0,0.00027397,30]
[340904726,1730052649955,-500.0,0.00027397,30]
[340904727,1730052649966,-151.0,0.00027397,7]
[340904728,1730052649977,-500.0,0.00027397,30]
[340904729,1730052649986,-151.0,0.00027397,7]
[340904730,1730052649997,-151.0,0.00027397,7]
[340904731,1730052650007,-151.0,0.00027397,7]
[340904732,1730052650017,-500.0,0.00027397,30]
[340904733,1730052650028,-151.0,0.00027397,7]
[340904734,1730052650038,-151.0,0.00027397,7]
[340904735,1730052650048,-191.373734,0.00027397,7]
[340904736,1730052650058,-500.0,0.00027397,30]
[340904737,1730052650068,-500.0,0.00027397,30]
[340904738,1730052650078,-579.35,0.00027397,30]
[340904739,1730052650087,-500.0,0.00027397,30]
[340904740,1730052650097,-500.0,0.00027397,30]
[340904741,1730052650107,-500.0,0.00027397,30]
[340904742,1730052650117,-500.0,0.00027397,30]
[340904743,1730052650127,-1205.97,0.00027397,30]
[340904744,1730052650137,-956.96,0.00027397,30]
[340904745,1730052650147,-500.0,0.00027397,30]
[340904746,1730052650158,-500.0,0.00027397,30]
[340904747,1730052650169,-761.31,0.00027397,30]
[340904748,1730052650180,-374.06029352,0.00027397,30]
[340904749,1730052650190,-500.0,0.00027397,30]
[340904750,1730052650200,-500.0,0.00027397,30]
[340904751,1730052650211,-500.0,0.00027397,30]
[340904752,1730052650483,-847.5,0.00027397,30]
[340904753,1730052650497,-500.0,0.00027397,30]
[340904754,1730052650508,-916.74,0.00027397,30]
[340904755,1730052650518,-500.0,0.00027397,30]
[340904756,1730052650530,-500.0,0.00027397,30]
[340904757,1730052650541,-500.0,0.00027397,30]
[340904758,1730052650551,-500.0,0.00027397,30]
[340904759,1730052650563,-927.97,0.00027397,30]
[340904760,1730052650573,-695.88,0.00027397,30]
[340904761,1730052650584,-500.0,0.00027397,30]
[340904762,1730052650594,-737.63,0.00027397,14]
[340904763,1730052650603,-500.0,0.00027397,7]
[340904764,1730052650613,-500.0,0.00027397,30]
[340904765,1730052650623,-1080.86,0.00027397,30]
[340904766,1730052650632,-500.0,0.00027397,30]
[340904767,1730052650641,-500.0,0.00027397,30]
[340904768,1730052650651,-161.828319,0.00027397,7]
[340904769,1730052650660,-161.828311,0.00027397,7]
[340904770,1730052650671,-1572.45,0.00027397,30]
[340904771,1730052650681,-593.35,0.00027397,30]
[340904772,1730052650692,-281.624626,0.00027397,7]
[340904773,1730052650702,-281.624626,0.00027397,7]
[340904774,1730052650712,-281.624626,0.00027397,7]
[340904775,1730052650721,-281.624626,0.00027397,7]
[340904776,1730052650730,-281.624626,0.00027397,7]
[340904777,1730052650741,-281.624626,0.00027397,7]
[340904778,1730052650751,-281.62463,0.00027397,7]
[340904779,1730052650762,-1186.39,0.00027397,30]
[340904780,1730052650771,-200.0,0.00027397,7]
[340904781,1730052650781,-500.0,0.00027397,30]
[340904782,1730052650790,-174.087908,0.00027397,7]
[340904783,1730052650799,-174.087908,0.00027397,7]
[340904784,1730052650809,-174.087908,0.00027397,7]
[340904785,1730052650819,-174.087908,0.00027397,7]
[340904786,1730052650828,-174.087908,0.00027397,7]
[340904787,1730052650838,-174.087908,0.00027397,7]
[340904788,1730052650849,-500.0,0.00027397,30]
[340904789,1730052650858,-174.087908,0.00027397,7]
[340904790,1730052650868,-174.087908,0.00027397,7]
[340904791,1730052650877,-174.087908,0.00027397,7]
[340904792,1730052650886,-174.087908,0.00027397,7]
[340904793,1730052650895,-174.087908,0.00027397,7]
[340904794,1730052650905,-174.087906,0.00027397,7]
[340904795,1730052650914,-667.6,0.00027397,30]
[340904796,1730052650924,-1344.48,0.00027397,30]
[340904797,1730052650933,-151.0,0.00027397,7]
[340904798,1730052650943,-151.0,0.00027397,7]
[340904799,1730052650954,-151.0,0.00027397,7]
[340904800,1730052650963,-151.0,0.00027397,7]
[340904801,1730052650973,-151.0,0.00027397,7]
[340904802,1730052650984,-151.0,0.00027397,7]
[340904803,1730052650995,-151.0,0.00027397,7]
[340904804,1730052651005,-500.0,0.00027397,30]
[340904805,1730052651014,-151.0,0.00027397,7]
[340904806,1730052651025,-151.0,0.00027397,7]
[340904807,1730052651035,-151.0,0.00027397,7]
[340904808,1730052651045,-534.55,0.00027397,30]
[340904809,1730052651056,-500.0,0.00027397,30]
[340904810,1730052651066,-711.83,0.00027397,30]
[340904811,1730052651075,-1123.52,0.00027397,30]
[340904812,1730052651086,-151.0,0.00027397,7]
[340904813,1730052651097,-151.0,0.00027397,7]
[340904814,1730052651107,-151.0,0.00027397,7]
[340904815,1730052651118,-151.0,0.00027397,7]
[340904816,1730052651128,-151.0,0.00027397,7]
[340904817,1730052651138,-500.0,0.00027397,30]
[340904818,1730052651147,-500.0,0.00027397,30]
[340904819,1730052651157,-500.0,0.00027397,30]
[340904820,1730052651167,-585.88,0.00027397,30]
[340904821,1730052651176,-1795.91,0.00027397,30]
[340904822,1730052651186,-891.514178,0.00027397,7]
[340904823,1730052651195,-891.514178,0.00027397,7]
[340904824,1730052651205,-891.514178,0.00027397,7]
[340904825,1730052651215,-965.34,0.00027397,30]
[340904826,1730052651225,-891.514178,0.00027397,7]
[340904827,1730052651235,-891.514178,0.00027397,7]
[340904828,1730052651245,-891.514178,0.00027397,7]
[340904829,1730052651255,-891.514178,0.00027397,7]
[340904830,1730052651264,-891.514178,0.00027397,7]
[340904831,1730052651274,-891.514178,0.00027397,7]
[340904832,1730052651286,-804.11,0.00027397,30]
[340904833,1730052651297,-891.514178,0.00027397,7]
[340904834,1730052651309,-891.514178,0.00027397,7]
[340904835,1730052651318,-891.514185,0.00027397,7]
[340904836,1730052651327,-500.0,0.00027397,30]
[340904837,1730052651335,-500.0,0.00027397,30]
[340904838,1730052651345,-2249.72,0.00027397,30]
[340904839,1730052651354,-1120.21,0.00027397,30]
[340904840,1730052651363,-1030.92,0.00027397,30]
[340904841,1730052651373,-208.94101099,0.00027397,30]
[340904842,1730052651382,-1956.25,0.00027397,30]
[340904843,1730052651391,-669.33,0.00027397,30]
[340904844,1730052651411,-500.0,0.00027397,30]
[340904845,1730052651425,-187.145651,0.00027397,7]
[340904846,1730052651435,-500.0,0.00027397,30]
[340904847,1730052651444,-187.145651,0.00027397,7]
[340904848,1730052651453,-187.145651,0.00027397,7]
[340904849,1730052651463,-187.145651,0.00027397,7]
[340904850,1730052651472,-187.145651,0.00027397,7]
[340904851,1730052651481,-530.87,0.00027397,30]
[340904852,1730052651491,-500.0,0.00027397,30]
[340904853,1730052651500,-187.145651,0.00027397,7]
[340904854,1730052651509,-187.145651,0.00027397,7]
[340904855,1730052651519,-187.145651,0.00027397,7]
[340904856,1730052651528,-187.145651,0.00027397,7]
[340904857,1730052651537,-187.14565,0.00027397,7]
[340904858,1730052651547,-1187.61,0.00027397,30]
[340904859,1730052651556,-851.31,0.00027397,30]
[340904860,1730052651566,-880.99,0.00027397,30]
[340904861,1730052651576,-500.0,0.00027397,30]
[340904862,1730052651585,-601.66,0.00027397,30]
[340904863,1730052651595,-1054.42,0.00027397,30]
[340904864,1730052651605,-520.32,0.00027397,30]
[340904865,1730052651614,-1010.695594,0.00027397,7]
[340904866,1730052651623,-944.22,0.00027397,30]
[340904867,1730052651632,-1010.695594,0.00027397,7]
[340904868,1730052651642,-1010.695594,0.00027397,7]
[340904869,1730052651651,-1010.695594,0.00027397,7]
[340904870,1730052651660,-151.0,0.00027397,7]
[340904871,1730052651670,-1010.695594,0.00027397,7]
[340904872,1730052651679,-151.0,0.00027397,7]
[340904873,1730052651688,-1010.695594,0.00027397,7]
[340904874,1730052651698,-276.84097,0.00027397,7]
[340904875,1730052651708,-1010.695594,0.00027397,7]
[340904876,1730052651717,-1010.695594,0.00027397,7]
[340904877,1730052651727,-1010.695594,0.00027397,7]
[340904878,1730052651737,-1010.695594,0.00027397,7]
[340904879,1730052651747,-1010.695594,0.00027397,7]
[340904880,1730052651756,-1010.695594,0.00027397,7]
[340904881,1730052651766,-500.0,0.00027397,30]
[340904882,1730052651776,-602.53,0.00027397,30]
[340904883,1730052651787,-500.0,0.00027397,30]
[340904884,1730052651806,-745.74,0.00027397,30]
[340904885,1730052651816,-500.0,0.00027397,30]
[340904886,1730052651826,-500.0,0.00027397,30]
[340904887,1730052651835,-502.24459941,0.00027397,30]
[340904888,1730052651846,-413.00779401,0.00027397,30]
[340904889,1730052651855,-619.02811387,0.00027397,30]
[340904890,1730052651863,-500.0,0.00027397,30]
[340904891,1730052651873,-500.0,0.00027397,30]
[340904892,1730052651882,-500.0,0.00027397,30]
[340904893,1730052651891,-566.63,0.00027397,30]
[340904894,1730052651901,-500.0,0.00027397,30]
[340904895,1730052651911,-578.52,0.00027397,30]
[340904896,1730052651921,-387.50158658,0.00027397,30]
[340904897,1730052651930,-706.61,0.00027397,30]
[340904898,1730052651940,-500.0,0.00027397,30]
[340904899,1730052651951,-1179.644685,0.00027397,7]
[340904900,1730052651962,-1179.644685,0.00027397,7]
[340904901,1730052651971,-1179.644685,0.00027397,7]
[340904902,1730052651980,-1179.644685,0.00027397,7]
[340904903,1730052651991,-1179.644685,0.00027397,7]
[340904904,1730052652000,-151.0,0.00027397,7]
[340904905,1730052652010,-748.42,0.00027397,30]
[340904906,1730052652019,-1179.644685,0.00027397,7]
[340904907,1730052652031,-151.0,0.00027397,7]
[340904908,1730052652041,-1179.644685,0.00027397,7]
[340904909,1730052652051,-151.0,0.00027397,7]
[340904910,1730052652061,-1179.644692,0.00027397,7]
[340904911,1730052652070,-758.02,0.00027397,30]
[340904912,1730052652079,-151.0,0.00027397,7]
[340904913,1730052652089,-687.76,0.00027397,30]
[340904914,1730052652100,-500.0,0.00027397,30]
[340904915,1730052652109,-782.97,0.00027397,30]
[340904916,1730052652119,-500.0,0.00027397,30]
[340904917,1730052652129,-514.42,0.00027397,30]
[340904918,1730052652139,-500.0,0.00027397,30]
[340904919,1730052652149,-151.0,0.00027397,7]
[340904920,1730052652158,-151.0,0.00027397,7]
[340904921,1730052652168,-199.960694,0.00027397,7]
[340904922,1730052652177,-1011.079166,0.00027397,7]
[340904923,1730052652187,-1011.079166,0.00027397,7]
[340904924,1730052652197,-1298.65,0.00027397,7]
[340904925,1730052652206,-1011.079166,0.00027397,7]
[340904926,1730052652215,-1011.079166,0.00027397,7]
[340904927,1730052652225,-500.0,0.00027397,30]
[340904928,1730052652235,-1011.079166,0.00027397,7]
[340904929,1730052652244,-1011.079166,0.00027397,7]
[340904930,1730052652253,-1011.079166,0.00027397,7]
[340904931,1730052652262,-1011.079166,0.00027397,7]
[340904932,1730052652271,-1011.079166,0.00027397,7]
[340904933,1730052652280,-1011.079166,0.00027397,7]
[340904934,1730052652290,-1011.079166,0.00027397,7]
[340904935,1730052652299,-1011.07916528,0.00027397,7]
[340904936,1730052652308,-738.69,0.00027397,30]
[340904937,1730052652317,-811.57,0.00027397,30]
[340904938,1730052652326,-605.53,0.00027397,30]
[340904939,1730052652335,-601.41,0.00027397,30]
[340904940,1730052652346,-1026.82,0.00027397,30]
[340904941,1730052652355,-500.0,0.00027397,30]
[340904942,1730052652365,-500.0,0.00027397,30]
[340904943,1730052652374,-500.0,0.00027397,30]
[340904944,1730052652384,-303.574176,0.00027397,7]
[340904945,1730052652393,-561.48,0.00027397,30]
[340904946,1730052652403,-575.25052111,0.00027397,30]
[340904947,1730052652412,-303.574176,0.00027397,7]
[340904948,1730052652422,-303.574176,0.00027397,7]
[340904949,1730052652431,-500.0,0.00027397,30]
[340904950,1730052652440,-680.1,0.00027397,30]
[340904951,1730052652450,-303.574176,0.00027397,7]
[340904952,1730052652460,-303.574176,0.00027397,7]
[340904953,1730052652470,-303.574166,0.00027397,7]
[340904954,1730052652480,-150.08720417,0.00027397,30]
[340904955,1730052652489,-500.0,0.00027397,30]
[340904956,1730052652498,-508.23,0.00027397,30]
[340904957,1730052652507,-1439.43,0.00027397,30]
[340904958,1730052652517,-1869.08,0.00027397,30]
[340904959,1730052652527,-1394.27,0.00027397,30]
[340904960,1730052652536,-500.0,0.00027397,30]
[340904961,1730052652546,-500.0,0.00027397,30]
[340904962,1730052652556,-1281.63,0.00027397,30]
[340904963,1730052652566,-606.38,0.00027397,30]
[340904964,1730052652575,-500.0,0.00027397,30]
[340904965,1730052652585,-809.96,0.00027397,30]
[340904966,1730052652596,-500.0,0.00027397,30]
[340904967,1730052652608,-960.04,0.00027397,30]
[340904968,1730052652618,-1303.52,0.00027397,30]
[340904969,1730052652627,-500.0,0.00027397,30]
[340904970,1730052652636,-500.0,0.00027397,30]
[340904971,1730052652646,-702.08,0.00027397,30]
[340904972,1730052652655,-598.09,0.00027397,30]
[340904973,1730052652665,-591.84,0.00027397,30]
[340904974,1730052652674,-150.3524153,0.00027397,30]
[340904975,1730052652684,-2023.25,0.00027397,30]
[340904976,1730052652694,-656.65,0.00027397,30]
[340904977,1730052652704,-830.248591,0.00027397,7]
[340904978,1730052652714,-830.248591,0.00027397,7]
[340904979,1730052652723,-830.248591,0.00027397,7]
[340904980,1730052652732,-500.52,0.00027397,30]
[340904981,1730052652742,-741.32,0.00027397,30]
[340904982,1730052652751,-882.46,0.00027397,30]
[340904983,1730052652761,-773.04,0.00027397,30]
[340904984,1730052652770,-830.248591,0.00027397,7]
[340904985,1730052652780,-552.887305,0.00027397,7]
[340904986,1730052652790,-830.248591,0.00027397,7]
[340904987,1730052652799,-552.887305,0.00027397,7]
[340904988,1730052652810,-830.248593,0.00027397,7]
[340904989,1730052652819,-552.887305,0.00027397,7]
[340904990,1730052652829,-690.1,0.00027397,30]
[340904991,1730052652839,-552.887305,0.00027397,7]
[340904992,1730052652853,-552.887305,0.00027397,7]
[340904993,1730052652862,-552.887308,0.00027397,7]
[340904994,1730052652871,-973.26,0.00027397,30]
[340904995,1730052652880,-595.88,0.00027397,30]
[340904996,1730052652889,-725.174488,0.00027397,7]
[340904997,1730052652898,-725.174488,0.00027397,7]
[340904998,1730052652907,-725.174488,0.00027397,7]
[340904999,1730052652917,-364.282999,0.00027397,7]
[340905000,1730052652926,-364.282999,0.00027397,7]
[340905001,1730052652935,-832.68,0.00027397,30]
[340905002,1730052652945,-725.174488,0.00027397,7]
[340905003,1730052652956,-364.282999,0.00027397,7]
[340905004,1730052652965,-725.174488,0.00027397,7]